Cogmind - Beta 9.4 @@@ ROGUE MODE // 2020.01.13 @ 16:05:02 Player: derk Result: Self-destructed Performance ------------- Evolutions (2) 1000 Regions Visited (4) 800 Robots Destroyed (49) 245 Value Destroyed (1241) 1241 Prototype IDs (4) 80 Alien Tech Used (0) 0 Bonus (0) 0 TOTAL SCORE: 3366 Bonus ------- None Cogmind --------- Core Integrity 69/550 Matter 234/300 Energy 100/100 System Corruption 0% Temperature Cool (9) Movement Core (450) Ox8 Location -8/Materials Parts ------- > --- POWER (1) -------- (None) > --- PROPULSION (3) --- (None) > --- UTILITY (5) ------ Medium Storage Unit Large Storage Unit Targeting Computer Hacking Suite > --- WEAPON (2) ------- Mace > --- INVENTORY (14) --- Heavy Ion Engine Light Deuterium Engine Heat Sink Compact Battery (300) Large Matter Pod (150) Improved Sensor Array Advanced Terrain Scanner Medium Armor Plating Signal Generator Peak State ------------ > --- POWER ------------ Heavy Ion Engine > --- PROPULSION ------- Aluminum Leg Titanium Leg Compact Wheel > --- UTILITY ---------- Medium Storage Unit Medium Storage Unit Improved Sensor Array Signal Interpreter Hacking Suite > --- WEAPON ----------- Particle Gun Particle Cannon > --- INVENTORY -------- Cooled Ion Engine Heat Sink Medium Storage Unit Large Matter Pod Improved Terrain Scanner Targeting Computer Actuator Array Medium Armor Plating Mace Signal Generator [Rating: 22] Favorites ----------- Power Ion Engine Engine Ion Engine Propulsion Aluminum Leg Leg Aluminum Leg Wheel Compact Wheel Utility Medium Storage Unit Device Heat Sink Storage Medium Storage Unit Processor Signal Interpreter Hackware Hacking Suite Protection Insulated Plating Weapon Assault Rifle Energy Gun Medium Laser Energy Cannon Particle Cannon Ballistic Gun Assault Rifle Launcher Grenade Launcher Impact Weapon Mace Build | -11 -10 -9 -9 -8 ------- Run | Scr Mat Mat Min Mat Slots Evolved 4 | . . 2 . 2 Power . | . . . . . Propulsion 1 | . . 1 . . Utility 3 | . . 1 . 2 Weapon . | . . . . . Parts Attached 81 | 7 21 11 9 33 Power 9 | 1 2 1 . 5 Engine 9 | 1 2 1 . 5 Core . | . . . . . Reactor . | . . . . . Propulsion 28 | 2 10 7 3 6 Treads . | . . . . . Leg 17 | . 8 5 1 3 Wheel 11 | 2 2 2 2 3 Hover . | . . . . . Flight . | . . . . . Utility 21 | 2 2 3 2 12 Device 8 | . . 3 . 5 Storage 6 | 2 2 . . 2 Processor 2 | . . . 1 1 Hackware 1 | . . . . 1 Protection 4 | . . . 1 3 Artifact . | . . . . . Weapon 23 | 2 7 . 4 10 Energy Gun 14 | 1 6 . 1 6 Energy Cannon 1 | . . . 1 . Ballistic Gun 4 | 1 1 . . 2 Ballistic Cannon . | . . . . . Launcher 1 | . . . 1 . Special Weapon . | . . . . . Impact Weapon 3 | . . . 1 2 Slashing Weapon . | . . . . . Piercing Weapon . | . . . . . Special Melee Weapon . | . . . . . Unidentified Prototypes 2 | . . 1 . 1 Parts Lost 27 | . 6 1 4 16 Power 1 | . . . . 1 Propulsion 8 | . 1 . 2 5 Utility 3 | . . . . 3 Weapon 15 | . 5 1 2 7 Highest Loss Streak 9 | . 2 1 4 9 Average Slot Usage (%) 95 | . 99 94 80 94 Engine 11 | . 14 11 11 8 Leg 18 | . 25 29 12 8 Wheel 7 | . 2 4 11 15 Device 4 | . . 9 8 7 Storage 23 | . 28 22 22 18 Processor 2 | . . . . 8 Hackware 2 | . . . . 8 Energy Gun 12 | . 12 19 6 10 Energy Cannon 1 | . . . 3 3 Ballistic Gun 7 | . 14 . . 2 Naked Turns . | . . . . . Heaviest Build 44 | 16 25 28 36 44 Greatest Support 48 | 32 32 32 32 48 Greatest Overweight (x) 2 | . 2 . 2 2 Average Overweight (x) . | . . . . . Largest Inventory Capacity 14 | 8 12 12 12 14 Average Capacity 11 | 6 11 12 12 12 Most Carried 13 | 4 12 12 12 13 Average Carried 9 | 1 10 9 9 10 Final Capacity 14 | 8 12 12 12 14 Final Carried 12 | 4 12 11 11 9 Class Distribution -------------------- 96% | Mutant 3% | Scavenger-Mutant Dominant Class ---------------- Mutant | -10/Materials Mutant | -9/Materials Mutant | -9/Mines Mutant | -8/Materials Resources | -11 -10 -9 -9 -8 ----------- Run | Scr Mat Mat Min Mat Matter Collected 1397 | 270 528 184 143 272 Remotely . | . . . . . Salvage Created 1510 | 75 669 190 12 564 Parts 84 | 1 43 8 . 32 Haulers Intercepted 1 | . 1 . . . Recyclers Shooed 1 | . . . 1 . Parts Field Recycled . | . . . . . Retrieved Matter . | . . . . . Parts Self-Destructed . | . . . . . Prevented . | . . . . . Kills | -11 -10 -9 -9 -8 ------- Run | Scr Mat Mat Min Mat Combat Hostiles Destroyed 45 | . 19 4 2 20 Melee 1 | . . . . 1 Guns 39 | . 19 3 . 17 Cannons 1 | . . . . 1 AOE 2 | . . . 2 . Classes Destroyed 8 | 1 4 . 1 2 Hauler 1 | . 1 . . . Recycler 1 | 1 . . . . Watcher 2 | . 1 1 . . Swarmer 17 | . 6 . . 11 Grunt 22 | . 13 4 . 5 Duelist 1 | . . . . 1 Sentry 3 | . . . . 3 Assembled 2 | . . . 2 . Best Kill Streak 5 | 1 3 3 2 5 Combat Bots Only 5 | . 3 2 2 5 Max Kills in Single Turn 2 | 1 1 1 1 2 Gunslinging 1 | . . . . 1 Exploded 1 | . . . 1 . Melee 1 | . . . . 1 Uniques/NPCs Destroyed . | . . . . . Combat | -11 -10 -9 -9 -8 -------- Run | Scr Mat Mat Min Mat Damage Taken 3848 | . 848 214 610 2176 Core 1044 | . 202 63 298 481 Absorbed by Shields . | . . . . . Core Remaining (%) 42 | 100 19 . 9 . Volleys Fired 160 | 3 74 24 3 56 Largest 2 | 2 2 2 1 2 Hottest 133 | 60 90 90 30 133 Shots Fired 291 | 6 140 37 3 105 Gun 269 | 6 140 37 . 86 Cannon 19 | . . . . 19 Launcher 3 | . . . 3 . Special . | . . . . . Kinetic 119 | 3 89 . . 27 Thermal 169 | 3 51 37 . 78 Explosive 3 | . . . 3 . Electromagnetic . | . . . . . Robot Hit Streak 18 | 5 13 8 2 18 Robot Miss Streak 7 | . 2 2 . 7 Penetration Max . | . . . . . Secondary Targets 2 | . . . . 2 Max Gunslinging Chain 1 | . . . . 1 Shots Hit Robots 212 | 5 90 30 2 85 Core Hits 105 | 2 39 9 11 44 Critical Hits . | . . . . . Critical Kills . | . . . . . Critical Parts Destroyed . | . . . . . Melee Attacks 6 | . . . . 6 Impact 6 | . . . . 6 Slashing . | . . . . . Piercing . | . . . . . Sneak Attacks . | . . . . . Combat Hostiles . | . . . . . Follow-up Attacks . | . . . . . Damage Inflicted 2931 | 59 937 374 270 1291 Guns 2284 | 59 937 374 . 914 Cannons 268 | . . . . 268 Explosions 255 | . . . 255 . Melee 103 | . . . . 103 Ramming 21 | . . . 15 6 Kinetic 879 | 39 518 . . 322 Thermal 1673 | 20 419 374 . 860 Explosive 255 | . . . 255 . Electromagnetic . | . . . . . Impact 103 | . . . . 103 Slashing . | . . . . . Piercing . | . . . . . Highest Corruption 1 | . . 1 1 . Average Corruption 1 | . . 1 1 . Corruption Purged . | . . . . . Effects 1 | . . 1 . . Message Errors 1 | . . 1 . . Overload Shots . | . . . . . Overflow Damage 4 | . . . . 4 Projectiles . | . . . . . Explosions . | . . . . . Melee 4 | . . . . 4 Knockbacks 2 | . . . 1 1 Impact 2 | . . . 1 1 Kinetic . | . . . . . Secondary . | . . . . . Self-Inflicted Damage 31 | . . . 28 3 Shots 1 | . . . 1 . Rammed 3 | . . . 2 1 Targets Rammed 3 | . . . 2 1 Kicked . | . . . . . Crushed . | . . . . . Highest Temperature 467 | . 181 21 . 467 Average Temperature 81 | . 37 6 . 120 Received Heat Transfer 1202 | . 417 90 20 675 Effects 11 | . . . . 11 Shutdowns 1 | . . . . 1 Energy Bleed 1 | . . . . 1 Matter Decay 3 | . . . . 3 Short Circuit 1 | . . . . 1 Damage (minor) 1 | . . . . 1 Damage (major) 4 | . . . . 4 Siege Activations . | . . . . . Robots Corrupted . | . . . . . Combat Hostiles . | . . . . . Parts Fried 1 | . . . . 1 Impact Corruptions 2 | . . . . 2 Robots Melted 1 | . . 1 . . Combat Hostiles 1 | . . 1 . . Parts Melted 16 | . 3 2 . 11 Heat Transferred 4006 | 50 1080 1039 . 1837 Parts Sabotaged . | . . . . . Parts Stolen . | . . . . . Parts Stripped . | . . . . . Power Chain Reactions . | . . . . . Missiles Intercepted . | . . . . . Alert | -11 -10 -9 -9 -8 ------- Run | Scr Mat Mat Min Mat Peak Influence 217 | 5 217 187 72 172 Average Influence 79 | 2 102 119 43 57 Maximum Alert Level 1 | . 1 . . . Low Security (%) 93 | 100 84 100 100 100 Level 1 6 | . 15 . . . Level 2 . | . . . . . Level 3 . | . . . . . Level 4 . | . . . . . Level 5 . | . . . . . High Security . | . . . . . Max Security . | . . . . . Squads Dispatched 14 | . 5 3 . 6 Investigation 4 | . 2 1 . 1 Extermination . | . . . . . Reinforcement 7 | . 3 2 . 2 Assault . | . . . . . Garrison 3 | . . . . 3 Intercept . | . . . . . Construction Impeded . | . . . . . Haulers Reinforced . | . . . . . Stealth | -11 -10 -9 -9 -8 --------- Run | Scr Mat Mat Min Mat Distress Signals 8 | . 3 2 . 3 Communications Jammed . | . . . . . Distress Signals . | . . . . . Times Spotted 101 | . 33 12 21 35 Peak Tracking Total 18 | . 4 3 18 13 Tactical Retreats 5 | . 1 . 1 3 Traps | -11 -10 -9 -9 -8 ------- Run | Scr Mat Mat Min Mat Traps Triggered 3 | . 1 1 . 1 Indirectly . | . . . . . Trap Hack Attempts . | . . . . . Triggered . | . . . . . Disarmed . | . . . . . Reprogrammed . | . . . . . Reused . | . . . . . Traps Extracted . | . . . . . Installed . | . . . . . Triggered . | . . . . . Machines | -11 -10 -9 -9 -8 ---------- Run | Scr Mat Mat Min Mat Machines Disabled 1 | . . . . 1 Max in Single Turn 1 | . . . . 1 Machines Sabotaged . | . . . . . Garrisons Compromised . | . . . . . Overloaded Fab Kills . | . . . . . Fab Network Shutdowns . | . . . . . Hacking | -11 -10 -9 -9 -8 --------- Run | Scr Mat Mat Min Mat Machines Accessed 10 | . 5 1 . 4 Terminals 8 | . 5 1 . 2 Fabricators . | . . . . . Repair Stations 1 | . . . . 1 Recycling Units . | . . . . . Scanalyzers 1 | . . . . 1 Garrison Access . | . . . . . Total Hacks 34 | . 17 2 . 15 Successful 21 | . 10 1 . 10 Failed 13 | . 7 1 . 5 Catastrophic 3 | . 2 1 . . Database Lockouts . | . . . . . Manual 13 | . 6 1 . 6 Terminals 29 | . 17 2 . 10 Fabricators . | . . . . . Repair Stations 2 | . . . . 2 Recycling Units . | . . . . . Scanalyzers 3 | . . . . 3 Garrison Access . | . . . . . Terminal Hacks 12 | . 7 . . 5 Record 1 | . . . . 1 Prototype ID Bank 1 | . 1 . . . Terminal Index 1 | . 1 . . . Unreport Threat 3 | . 1 . . 2 Locate Traps 2 | . 2 . . . Recall Investigation 1 | . . . . 1 Zone Layout 3 | . 2 . . 1 Fabricator Hacks . | . . . . . Repair Station Hacks 2 | . . . . 2 Scan Component 1 | . . . . 1 Repair 1 | . . . . 1 Recycling Unit Hacks . | . . . . . Scanalyzer 1 | . . . . 1 Insert Component 1 | . . . . 1 Garrison Access Hacks . | . . . . . Unauthorized Hacks 15 | . 9 2 . 4 Terminals 6 | . 3 1 . 2 Track 1 | . 1 . . . Botnet 5 | . 2 1 . 2 Fabricators . | . . . . . Repair Stations . | . . . . . Recycling Units . | . . . . . Scanalyzers . | . . . . . Garrison Access . | . . . . . Data Cores Recovered . | . . . . . Used . | . . . . . Hacking Detections 9 | . 5 1 . 3 Full Trace Events 3 | . 1 . . 2 Feedback Events . | . . . . . Feedback Blocked . | . . . . . Robot Schematics Acquired . | . . . . . Robots Built . | . . . . . Matter . | . . . . . Time . | . . . . . Total Robot Build Rating . | . . . . . Part Schematics Acquired . | . . . . . Parts Built . | . . . . . Matter . | . . . . . Time . | . . . . . Total Part Build Rating . | . . . . . Parts Repaired 1 | . . . . 1 Time 13 | . . . . 13 Parts Recycled . | . . . . . Recycled Matter . | . . . . . Retrieved Matter . | . . . . . Retrieved Components . | . . . . . Parts Scanalyzed 1 | . . . . 1 Part Schematics Acquired . | . . . . . Parts Damaged . | . . . . . Bothacking | -11 -10 -9 -9 -8 ------------ Run | Scr Mat Mat Min Mat Used RIF Installer . | . . . . . Robots Hacked . | . . . . . Non-combat . | . . . . . Combat . | . . . . . Robot Hacks Applied . | . . . . . Relay Couplers Released . | . . . . . Robots Rewired . | . . . . . Allies Hacked . | . . . . . Hacks Repelled . | . . . . . Allies | -11 -10 -9 -9 -8 -------- Run | Scr Mat Mat Min Mat Total Allies . | . . . . . Largest Group . | . . . . . Highest-Rated Group . | . . . . . Highest-Rated Ally . | . . . . . Total Orders . | . . . . . Ally Attacks . | . . . . . Total Damage . | . . . . . Kills . | . . . . . Allies Corrupted . | . . . . . Allies Melted . | . . . . . Intel | -11 -10 -9 -9 -8 ------- Run | Scr Mat Mat Min Mat Robot Analysis Total . | . . . . . Derelict Logs Recovered 2 | . . . 2 . Drone Launches . | . . . . . Drone Recoveries . | . . . . . Exploration | -11 -10 -9 -9 -8 ------------- Run | Scr Mat Mat Min Mat Turns Passed 2424 | 66 1045 224 265 824 Spaces Moved 1291 | 44 524 108 202 413 Core 2 | 2 . . . . Treads . | . . . . . Legs 668 | . 454 78 34 102 Wheels 621 | 42 70 30 168 311 Hover . | . . . . . Flight . | . . . . . Fastest Speed 50 | 50 100 100 100 100 Average Speed 126 | 97 143 114 112 117 Slowest Speed 180 | 100 180 120 120 160 Overloaded Moves . | . . . . . Propulsion Burnouts . | . . . . . Robots Hopped . | . . . . . Cave-ins Triggered . | . . . . . Exploration Rate (%) 38 | 4 87 13 53 36 Regions Visited 4 Branch Regions 1 Pre-discovered Areas 1 | . . . 1 . Known Exits Taken 1 | . . . 1 . Unknown Exits Taken 3 | 1 1 1 . . Scrap Searched . | . . . . . Spaces Dug . | . . . . . Terrain Destroyed 25 | . . . 25 . Melee . | . . . . . Projectile . | . . . . . AOE 25 | . . . 25 . Actions | -11 -10 -9 -9 -8 --------- Run | Scr Mat Mat Min Mat Total 1785 | 57 679 171 237 641 Wait 178 | . 43 16 13 106 Move 1287 | 43 523 107 201 413 Hop . | . . . . . Pick Up 33 | 4 11 4 4 10 Fast Attach 25 | 7 1 3 3 11 Attach 30 | . 6 2 6 16 Detach 9 | . 1 1 2 5 Swap 26 | . 14 6 . 6 Drop 28 | . 6 8 3 11 Fire 160 | 3 74 24 3 56 Melee 6 | . . . . 6 Ram 3 | . . . 2 1 Kick . | . . . . . Crush . | . . . . . Escape Stasis . | . . . . . Rewire . | . . . . . Trap . | . . . . . Miscellaneous . | . . . . . Route ------- -11/Scrapyard -10/Materials (discovered 4 exits: *Mat x3 / [*Min]) -9/Materials -9/Mines (discovered 2 exits: *Mat x2) -8/Materials (discovered 1 exit: [*Fac]) History --------- Turn | Location | Event 13 | -11/Scrapyard | Discovered new exit (range 15) 67 | -11/Scrapyard | Entered Materials 214 | -10/Materials | Discovered new exit (range 8) 315 | -10/Materials | Build established: Mutant 377 | -10/Materials | Discovered new exit (range 4) 677 | -10/Materials | Core integrity fell below 50% 737 | -10/Materials | Discovered new exit (range 16) 857 | -10/Materials | Discovered new exit (range 12) 1037 | -10/Materials | Core integrity fell below 20% 1112 | -10/Materials | Entered another Materials area 1112 | -9/Materials | Evolved 2 slots: Propulsion x1, Utility x1 1327 | -9/Materials | Discovered new exit (range 6) 1336 | -9/Materials | Entered Mines 1370 | -9/Mines | Assembled infested the area 1375 | -9/Mines | Assisted by a Guerilla fighting off Assembled 1410 | -9/Mines | Core integrity fell below 50% 1416 | -9/Mines | Met a Derelict bent on vengeance 1426 | -9/Mines | Core integrity fell below 20% 1443 | -9/Mines | Discovered new exit (range 11) 1450 | -9/Mines | Met a Derelict testing a Signal Generator 1453 | -9/Mines | Lost 4 parts (2n2w) 1455 | -9/Mines | Found Signal Generator 1499 | -9/Mines | Joined a pair of Derelicts in attacking an 0b10 outpost 1552 | -9/Mines | Learned location of 1 exit from Lower Caves 1585 | -9/Mines | Discovered new exit (range 9) 1598 | -9/Mines | Identified exit to Materials 1601 | -9/Mines | Entered Materials 1601 | -8/Materials | Evolved 2 slots: Utility x2 1952 | -8/Materials | Lost 3 parts (1u2w) 2146 | -8/Materials | Garrison activated, responded to threat 2245 | -8/Materials | Repaired Com. Wheel 2296 | -8/Materials | Discovered new exit (range 4) 2413 | -8/Materials | Core integrity fell below 50% 2423 | -8/Materials | Core integrity fell below 20% 2425 | -8/Materials | Self-destructed Last Messages --------------- 02380_ Switching to secondary target: G-47 Trooper. 02385_ G-47 Trooper destroyed. 02386_ K-01 Serf collects debris. 02396_ Com. Wheel destroyed. 02403_ Shotgun severed. 02403_ K-01 Serf collects debris. 02404_ Hrd. Medium Armor Plating destroyed. 02409_ K-01 Serf cleans the Hadron Collector. 02410_ Lgt. Assault Rifle destroyed. 02410_ Cld. Ion Engine destroyed. 02415_ Destroyed Melee Analysis Suite. 02415_ L-31 Rogue system corrupted by crushing effect. 02417_ K-01 Serf cleans the Hadron Collector. 02417_ L-31 Rogue knocked back. 02422_ Destroyed Core Shielding. 02422_ L-31 Rogue system corrupted by crushing effect. 02423_ L-31 Rogue system terminally corrupted. 02423_ Katana fried. 02423_ K-01 Serf collects debris. 02424_ Titanium Leg destroyed. Map ----- +----------------------------------------------------+ | | | | | | | | | | | | | ?????????????????????????????????????????????????? | | ?????????????????????????????????????????????????? | | ?????????????????????????????????????????????????? | | ?????????????????????????????????????????????????? | | ?????????????????????????????????????????????????? | | ?????????????????????????????????????????????????? | | ?????????????????????????????????????????????????? | | ?????????????????????????????????????????????????? | | ????????????#########????????????????????????????? | | ????????????# #?????????? ? ???????????????? | | ????????????# < #?????????? ?????????????? | | ????????????# #????????? T ??????????????? | | ????????????##### #????????? ??????????????? | | ???????########## #????????? ??????????????? | | ???????# # #????????? ??????????????? | | ???????# #?????????# #??????????????? | | ????????# # #?????????# #??????????????? | | ????????######### #?????????# #??????????????? | | ?????#######+#### ########### #??####????????? | | ?????# # #g%=@%= # #? ?????????? | | ?????# """" # #s% [%" =# #? ?????????? | | ?????# ""R" + #gg """ # # """ ?????????? | | ?????# "" " # # g"""" g# # """ ?????????? | | ?????# # # k a /k + """ ?????????? | | ?????# ####=## """" # # ?????? | | ?????# ! #??#*## """" ]# #??????????????? | | ##???# #??#=## """" # #??????????????? | | ################?# ## # ######?????????? | | # ! ! # #?#=########### ######?????????? | | # ! # #?# #??# #?# ##"T"########### | | ## = # #?# #??# #?# | | ## # ! #?#%#??# #?# ^ #????? | | ########+### #?# #??# #?# ! #????? | | #?# #?# #??# #?# #????? | | ######## #?# #?# #??# #?# " " /// #????? | | """ ### ### /### #### ### "G" /// #????? | | """ # ###+### ###+### """ /// #????? | | """ # ! #????? | | + | | ???? | | # ##+###### ##??? | | # #######= % ####### # ?????#???? | | ## ##??######+######??## ## T ?????????? | | ## #???# * % T #???# ## ?????????? | | ####### #???# ! #???# ## ?????????? | +----------------------------------------------------+ Best States ------------- Heat Dissipation 41 Energy Generation 14 Energy Capacity 280 Matter Stores 300 Matter Capacity 300 Sight Range 16 Robot Scan Range 13 Terrain Scan Range 16 Terrain Scan Density 10 Armor Coverage 225 Resistance: EM 15 Evasion (%) 40 Targeting Accuracy 5 Offensive Hacking 10 Item Schematics ----------------- None Robot Schematics ------------------ None Fabricated ------------ Nothing Alien Tech Used ----------------- None Achievements -------------- Slippery One Challenges ------------ None Game ------ Seed PrecisionBoreGreatsword Manual? 0 Play Time 00:35:20 Cumulative 24.1 hours Start 2020.01.13 @ 15:29:16 End 2020.01.13 @ 16:05:02 Sessions 1 Manual Loads 0 Difficulty Rogue Special Mode None Game No. 14 Rogue 14 Adventurer 0 Explorer 0 Win Type - Total 0 Types 0/0/0/0/0/0/0 Lore% 17 Gallery% 39 Achievement% 30 Wizard Run 0 Options --------- ASCII 0 Keyboard 0 Movement Numpad Keybinds 0 Fullscreen 1 Font 18/SmallcapsGlow Map View 76x50 Tactical HUD 1 Map Filters NONE Filters NONE Steam 1 RUN: 230d799e-895b-45cf-af2e-41e025078ea2